bitfinex/quotes_SOLUSD_20250425
["timestamp","ask_amount","ask_price","bid_price","bid_amount"]
[1745614810155,13.38,151.89,151.84,26.0]
[1745614811169,19.96398732,151.89,151.83,0.03]
[1745614811952,3.00066157,151.88,151.83,0.03]
[1745614812338,0.14216157,151.85,151.83,0.03]
[1745614812645,13.50216157,151.84,151.83,0.03]
[1745614813146,20.08804144,151.84,151.83,0.03]
[1745614813867,24.96836295,151.84,151.83,0.03]
[1745614814580,18.38248308,151.84,151.83,0.03]
[1745614814861,24.96836295,151.84,151.83,0.03]
[1745614815068,20.08804144,151.84,151.83,0.03]
[1745614819965,24.97577421,151.84,151.83,0.03]
[1745614821474,27.42316908,151.84,151.83,0.03]
[1745614825903,7.33512764,151.84,151.83,0.03]
[1745614826400,2.44739487,151.84,151.83,0.03]
[1745614827195,17.62375609,151.85,151.83,0.03]
[1745614834471,24.20932506,151.85,151.83,0.03]
[1745614834887,7.36824373,151.84,151.83,0.03]
[1745614835086,7.5104053,151.84,151.83,0.03]
[1745614836189,14.09628517,151.84,151.83,0.03]
[1745614843098,26.0,151.82,151.81,0.03]
[1745614843783,28.45608121,151.82,151.81,0.03]
[1745614844187,33.36824373,151.82,151.81,0.03]
[1745614844517,39.95499119,151.82,151.81,0.03]
[1745614845700,75.21367028,151.82,151.77,0.03]
[1745614845903,0.14216157,151.8,151.77,0.03]
[1745614846083,2.45608121,151.79,151.77,0.03]
[1745614846604,4.91216252,151.78,151.77,0.03]
[1745614846977,7.36824373,151.78,151.77,0.03]
[1745614847502,13.95672706,151.78,151.77,0.03]
[1745614852021,7.36824373,151.78,151.77,0.03]
[1745614853700,4.91216252,151.78,151.77,0.03]
[1745614853903,4.91216252,151.8,151.77,0.03]
[1745614858612,2.45534943,151.79,151.77,0.03]
[1745614858795,7.36751195,151.79,151.77,0.03]
[1745614859810,4.91216252,151.78,151.77,0.03]
[1745614860697,4.91216252,151.79,151.77,0.03]
[1745614860893,11.5002811,151.79,151.77,0.03]
[1745614861400,4.91216252,151.79,151.77,0.03]
[1745614861599,4.91216252,151.78,151.77,0.03]
[1745614861813,7.36706466,151.78,151.77,0.03]
[1745614862319,4.91216252,151.78,151.77,0.03]
[1745614862717,4.91216252,151.79,151.77,0.03]
[1745614863722,4.9089409,151.78,151.77,0.03]
[1745614864700,4.9089409,151.79,151.77,0.03]
[1745614865623,4.9089409,151.78,151.77,0.03]
[1745614866498,11.49720754,151.79,151.77,0.03]
[1745614867627,2.45396328,151.78,151.77,0.03]
[1745614868014,7.36290418,151.78,151.77,0.03]
[1745614871851,2.45396328,151.78,151.77,0.03]
[1745614872012,2.45396328,151.78,151.77,9.0586]
[1745614872330,13.36,151.8,151.77,9.0586]
[1745614874215,13.36,151.8,151.77,15.64746911]
[1745614876734,13.36,151.8,151.77,9.0586]
[1745614880632,4.91992073,151.79,151.77,9.0586]
[1745614881106,13.36,151.8,151.77,9.0586]
[1745614883232,13.36,151.8,151.77,15.647481]
[1745614886936,13.36,151.8,151.78,18.64964886]
[1745614887634,13.36,151.84,151.78,18.64964886]
[1745614887850,0.14216157,151.81,151.77,0.03]
[1745614888220,2.94236157,151.79,151.77,0.03]
[1745614888540,13.36,151.78,151.77,0.03]
[1745614888739,18.28043562,151.78,151.77,0.03]
[1745614889553,20.74015759,151.78,151.77,0.03]
[1745614889748,27.47080249,151.78,151.77,0.03]
[1745614890640,25.01108052,151.78,151.77,0.03]
[1745614891140,18.28043562,151.78,151.77,0.03]
[1745614891640,4.92043562,151.78,151.77,0.03]
[1745614891837,18.28043562,151.78,151.77,0.03]
[1745614902662,4.92043562,151.78,151.77,0.03]
[1745614902875,4.92043562,151.78,151.77,18.67964886]
[1745614903450,4.92043562,151.78,151.77,25.2685663]
[1745614903855,13.36,151.81,151.77,25.2685663]
[1745614904658,30.98375609,151.85,151.8,26.0]
[1745614905161,17.62375609,151.85,151.81,18.64964886]
[1745614905354,13.36,151.87,151.81,18.64964886]
[1745614905741,13.36,151.87,151.83,18.64964886]
[1745614909848,13.36,151.87,151.83,25.23568953]
[1745614910663,13.36,151.87,151.82,2.9129]
[1745614911156,13.36,151.87,151.82,9.49942258]
[1745614912971,13.36,151.87,151.82,2.9129]
[1745614914644,13.36,151.87,151.82,9.4995585]
[1745614915365,13.36,151.87,151.83,18.64964886]
[1745614918382,13.36,151.87,151.83,25.23567709]
[1745614928390,13.36,151.87,151.83,18.64964886]
[1745614928777,13.36,151.87,151.81,82.8]
[1745614929667,13.36,151.87,151.82,18.64964886]
[1745614930288,13.36,151.87,151.83,6.58631364]
[1745614930493,29.0591938,151.91,151.84,18.64964886]
[1745614930661,42.3991938,151.91,151.84,18.64964886]
[1745614932199,42.3991938,151.91,151.86,18.64964886]
[1745614934408,42.3991938,151.91,151.87,25.23422777]
[1745614935601,42.3991938,151.91,151.87,18.64964886]
[1745614938609,42.3991938,151.91,151.87,25.23422777]
[1745614941499,42.3991938,151.91,151.87,18.64964886]
[1745614941980,42.3991938,151.91,151.87,25.23422777]
[1745614942586,0.063,151.94,151.87,25.23422777]
[1745614942803,13.34,151.91,151.87,25.23422777]
[1745614943288,13.34,151.92,151.87,25.37638934]
[1745614944021,13.403,151.94,151.87,108.17638934]
[1745614944219,13.403,151.94,151.87,110.96608934]
[1745614944522,0.063,151.94,151.87,127.42753663]
[1745614944729,0.063,151.94,151.91,44.64964886]
[1745614947112,0.063,151.94,151.87,102.19330886]
[1745614947294,0.063,151.94,151.89,26.0]
[1745614949629,0.063,151.94,151.91,18.64964886]
[1745614953414,0.063,151.94,151.91,25.23241144]
[1745614955829,0.063,151.94,151.93,26.0]
[1745614956134,0.063,151.94,151.93,134.0316274]
[1745614959328,0.063,151.94,151.93,82.8]
[1745614961324,0.063,151.94,151.92,6.58228664]
[1745614961826,0.063,151.94,151.93,18.64964886]
[1745614963424,0.063,151.94,151.93,51.2316274]
[1745614963934,0.063,151.94,151.93,51.37378897]
[1745614967037,0.063,151.94,151.93,134.17378897]
[1745614978165,0.063,151.94,151.93,108.17378897]
[1745614978846,1e-08,151.95,151.94,44.64964886]
[1745614980442,1e-08,151.95,151.94,51.2311942]
[1745614981657,1e-08,151.95,151.94,25.2311942]
[1745614982457,1e-08,151.95,151.89,23.04213986]
[1745614982666,1e-08,151.95,151.9,18.64964886]
[1745614986968,1e-08,151.95,151.91,6.5828451]
[1745614987270,13.32000001,151.95,151.92,18.64964886]
[1745614988861,13.32000001,151.95,151.9,25.23286259]
[1745614993070,12.32000001,151.95,151.9,25.23286259]
[1745614996569,11.32000001,151.95,151.9,25.23286259]
[1745614999375,4.91665539,151.94,151.9,25.23286259]
[1745615003881,11.32000001,151.95,151.9,25.23286259]
[1745615005876,11.32000001,151.95,151.89,6.58351494]
[1745615006379,4.91528951,151.94,151.89,6.58351494]
[1745615007583,11.32000001,151.95,151.89,6.58351494]
[1745615008580,11.32000001,151.95,151.88,101.44964886]
[1745615008770,37.32000001,151.95,151.88,108.03362219]
[1745615008969,37.32000001,151.95,151.88,89.38397333]
[1745615009165,4.91428531,151.94,151.88,89.38397333]
[1745615010187,4.91428531,151.93,151.88,89.38397333]
[1745615011167,4.91428531,151.94,151.88,89.38397333]
[1745615012066,4.91428531,151.93,151.88,89.38397333]
[1745615012991,4.91428531,151.94,151.88,89.38397333]
[1745615013779,6.257,151.93,151.85,18.64964886]
[1745615013980,4.91428531,151.93,151.89,18.64964886]
[1745615014287,4.91428531,151.93,151.89,101.44964886]
[1745615015298,13.32,151.95,151.89,101.44964886]
[1745615015597,13.32,151.95,151.9,6.58327847]
[1745615016695,13.32,151.95,151.91,18.64964886]
[1745615019490,13.32,151.95,151.92,6.58241179]
[1745615037614,0.063,151.96,151.92,6.58241179]
[1745615038020,0.063,151.96,151.93,18.64964886]
[1745615039202,0.063,151.96,151.94,6.58154534]
[1745615041721,0.063,151.96,151.93,6.58181238]
[1745615047435,0.063,151.96,151.94,18.64964886]
[1745615047800,0.063,151.96,151.95,25.23076106]
[1745615050021,0.063,151.96,151.95,108.17292263]
[1745615052501,0.063,151.96,151.95,108.03076106]
[1745615052731,0.063,151.96,151.95,89.3811122]
[1745615055015,0.063,151.96,151.94,6.58139036]
[1745615055218,0.063,151.96,151.94,25.23103922]
[1745615060544,0.063,151.96,151.95,18.64964886]
[1745615060712,0.063,151.96,151.95,25.23076106]
[1745615066065,0.063,151.96,151.94,6.5813608]
[1745615071553,0.063,151.96,151.95,18.64964886]
[1745615073474,0.063,151.96,151.95,25.23076106]
[1745615075570,0.063,151.96,151.95,25.37292263]
[1745615078474,0.063,151.96,151.95,108.17292263]
[1745615100500,0.063,151.96,151.95,82.8]
[1745615101583,4.98522403,151.96,151.93,25.23154234]
[1745615103003,0.063,151.96,151.93,25.23154234]
[1745615104906,0.063,151.96,151.93,108.03154234]
[1745615106098,0.063,151.96,151.91,82.8]
[1745615106306,0.063,151.96,151.91,89.38283893]
[1745615107106,4.92027113,151.95,151.91,89.38283893]
[1745615108310,0.063,151.96,151.91,89.38283893]
[1745615110305,4.91578035,151.95,151.91,89.38283893]
[1745615110514,8.7902,151.94,151.91,89.38283893]
[1745615113529,0.063,151.96,151.91,89.38283893]
[1745615115395,13.343,151.96,151.91,89.38283893]
[1745615115915,0.063,151.96,151.91,89.38283893]
[1745615118327,0.063,151.96,151.92,18.64964886]
[1745615118497,0.063,151.96,151.94,18.64964886]
[1745615120922,0.063,151.96,151.95,6.5811122]
[1745615121513,0.063,151.96,151.95,25.23076106]
[1745615122522,0.063,151.96,151.95,108.03076106]
[1745615124728,0.063,151.96,151.95,108.17292263]
[1745615125022,1e-08,151.96,151.95,108.17292263]
[1745615127027,0.063,151.97,151.96,0.14216157]
[1745615127028,1e-08,151.97,151.96,0.14216157]
[1745615128437,1e-08,151.97,151.96,82.94216157]
[1745615129140,1e-08,151.97,151.96,89.38067912]
[1745615129431,1e-08,151.97,151.96,108.03032798]
[1745615130343,1e-08,151.97,151.96,108.17248955]
[1745615131412,0.063,151.99,151.98,26.14216157]
[1745615131615,0.063,151.99,151.98,108.94216157]
[1745615134446,0.063,151.99,151.98,115.5219747]
[1745615145746,0.063,151.99,151.98,115.37981313]
[1745615146259,0.063,151.99,151.98,89.37981313]
[1745615153061,0.063,151.99,151.98,82.8]
[1745615153255,0.063,151.99,151.98,89.37981313]
[1745615158775,0.063,151.99,151.98,82.8]
[1745615161760,0.063,151.99,151.96,0.14216157]
[1745615163269,0.063,151.99,151.95,41.68354157]
[1745615166578,0.063,151.99,151.95,124.48354157]
[1745615176789,0.063,151.99,151.96,0.14216157]
[1745615177288,0.063,151.99,151.97,6.5802461]
[1745615178489,0.063,151.99,151.97,89.3802461]
[1745615188998,0.063,151.99,151.98,18.79181043]
[1745615189301,1e-08,151.99,151.98,18.79181043]
[1745615189887,0.063,152.02,152.0,0.14216157]
[1745615190688,0.063,152.02,152.0,6.72110893]
[1745615192910,0.063,152.02,152.0,89.52110892]
[1745615193998,0.063,152.02,152.0,82.79999999]
[1745615195506,0.063,152.02,152.0,89.37894735]
[1745615196504,0.063,152.02,152.0,82.79999999]
[1745615197207,0.063,152.02,152.0,89.37894735]
[1745615199309,0.063,152.02,152.0,82.79999999]
[1745615203413,0.063,152.02,152.0,89.37894735]
[1745615206207,0.063,152.02,152.0,108.17075778]
[1745615208193,0.063,152.02,152.01,101.38664885]
[1745615208800,0.063,152.02,152.01,101.52881042]
[1745615219123,0.063,152.02,152.01,104.83515378]
[1745615219427,0.063,152.03,152.02,101.32364885]
[1745615219933,0.063,152.03,152.02,101.46581042]
[1745615227631,0.063,152.03,152.02,82.67399999]
[1745615236155,0.063,152.03,152.02,101.46581042]
[1745615242754,0.063,152.05,152.03,101.26064885]
[1745615243326,0.063,152.05,152.03,103.63681042]
[1745615244153,0.063,152.05,152.03,110.21445956]
[1745615244641,1e-08,152.04,152.03,110.21445956]
[1745615245554,0.063,152.1,152.09,18.64964886]
[1745615245726,0.063,152.1,152.09,127.21381042]
[1745615246825,0.063,152.1,152.09,133.78886466]
[1745615247853,0.063,152.17,152.09,163.46650027]
[1745615248054,170.50031615,152.28,152.27,21.0]
[1745615248055,38.42938521,152.28,152.27,21.0]
[1745615248361,0.04628267,152.4,152.27,34.80622441]
[1745615248560,0.04628267,152.4,152.29,26.0]
[1745615248765,0.04628267,152.4,152.3,1.0]
[1745615248931,0.04628267,152.4,152.37,26.0]
[1745615250026,0.04628267,152.4,152.34,32.56426414]
[1745615250229,0.04628267,152.4,152.37,26.0]
[1745615250656,0.04628267,152.4,152.38,4.74827924]
[1745615251462,0.04628267,152.4,152.38,11.31077004]
[1745615251633,0.04628267,152.4,152.38,6.5624908]
[1745615252160,0.04628267,152.4,152.36,6.56340246]
[1745615252952,0.04628267,152.4,152.36,88.98540245]
[1745615253852,0.04628267,152.4,152.36,105.39390861]
[1745615254441,1e-08,152.4,152.39,26.0]
[1745615255137,13.94,152.52,152.4,82.42199998]
[1745615255355,39.94,152.52,152.4,82.42199998]
[1745615255555,13.94,152.52,152.43,26.0]
[1745615255861,13.94,152.52,152.43,108.42199998]
[1745615257058,13.94,152.52,152.44,6.55995801]
[1745615257376,270.53381739,152.53,152.44,88.98195799]
[1745615257941,270.53381739,152.53,152.45,18.79181043]
[1745615258138,270.53381739,152.53,152.45,101.21381041]
[1745615258773,268.30231739,152.53,152.45,101.21381041]
[1745615259446,268.30231739,152.53,152.47,18.79181043]
[1745615259649,268.30231739,152.53,152.47,101.21381041]
[1745615261245,268.30231739,152.53,152.47,82.42199998]
[1745615261965,268.30231739,152.53,152.43,18.64964886]
[1745615262154,268.30231739,152.53,152.44,30.0]
[1745615262546,26.0,152.52,152.44,30.0]
[1745615262970,26.0,152.5,152.42,82.42199998]
[1745615263273,26.0,152.5,152.43,0.14216157]
[1745615263566,26.0,152.5,152.42,82.42199998]
[1745615263739,26.0,152.5,152.43,0.14216157]
[1745615264139,26.0,152.5,152.42,82.42199998]
[1745615264869,6.0405,152.49,152.42,82.42199998]
[1745615265456,14.52,152.48,152.42,82.42199998]
[1745615265765,16.8047,152.48,152.42,82.42199998]
[1745615268277,26.0,152.47,152.42,82.42199998]
[1745615270271,32.55877293,152.47,152.42,82.42199998]
[1745615270672,26.0,152.47,152.42,82.42199998]
[1745615271868,32.55884574,152.47,152.42,82.42199998]
[1745615272082,48.95551393,152.47,152.37,82.56416155]
[1745615272452,48.95551393,152.47,152.37,82.42199998]
[1745615272779,26.0,152.43,152.37,82.42199998]
[1745615273487,22.95551393,152.47,152.37,82.42199998]
[1745615273488,26.0,152.47,152.38,18.79181043]
[1745615273687,26.0,152.47,152.38,101.21381041]
[1745615273990,32.55868723,152.47,152.38,101.21381041]
[1745615274663,26.0,152.47,152.38,101.21381041]
[1745615274866,32.558954,152.47,152.38,101.21381041]
[1745615275567,26.0,152.47,152.38,101.21381041]
[1745615276762,26.0,152.47,152.38,107.77606974]
[1745615277362,32.55877148,152.47,152.38,107.77606974]
[1745615279288,26.0,152.47,152.38,107.77606974]
[1745615279976,32.55877727,152.47,152.38,107.77606974]
[1745615280473,32.55877727,152.47,152.38,101.21381041]
[1745615280788,32.55877727,152.47,152.38,82.56416155]
[1745615281867,48.95544546,152.47,152.38,82.42199998]
[1745615285098,32.55877727,152.47,152.38,82.42199998]
[1745615286092,32.55877727,152.47,152.38,88.98448078]
[1745615288002,32.55877727,152.47,152.38,82.42199998]
[1745615288208,32.55877727,152.47,152.38,88.98451535]
[1745615289402,48.95544546,152.47,152.39,2.37055577]
[1745615290377,48.95544546,152.47,152.38,82.42199998]
[1745615290780,48.95544546,152.47,152.39,4.75510429]
[1745615291222,48.95544546,152.47,152.4,2.3835594]
[1745615292680,48.95544546,152.47,152.41,2.3835594]
[1745615293408,32.55877727,152.47,152.41,2.3835594]
[1745615293797,32.55877727,152.47,152.42,2.3835594]
[1745615294106,26.0,152.45,152.42,2.3835594]
[1745615294899,26.0,152.47,152.42,84.80555938]
[1745615295107,16.8047,152.48,152.43,2.3835594]
[1745615296306,23.36308692,152.48,152.44,2.3835594]
[1745615296807,26.0,152.45,152.44,2.3835594]
[1745615297187,26.0,152.45,152.42,82.42199998]
[1745615300708,26.0,152.47,152.42,82.42199998]
[1745615301287,26.0,152.47,152.42,88.98270897]
[1745615301505,26.0,152.47,152.43,2.40375488]
[1745615302396,26.0,152.47,152.44,2.40375488]
[1745615303199,26.0,152.47,152.42,82.42199998]
[1745615303492,32.5586744,152.47,152.42,82.42199998]
[1745615303811,26.0,152.47,152.42,82.42199998]
[1745615307996,26.0,152.47,152.43,2.41360197]
[1745615309019,26.0,152.47,152.42,82.42199998]
[1745615311918,32.5587263,152.47,152.42,82.42199998]
[1745615312109,26.0,152.45,152.42,82.42199998]
[1745615313225,26.0,152.45,152.4,6.56163967]
[1745615314426,14.26,152.46,152.4,88.98363965]
[1745615314605,14.26,152.46,152.41,2.40999326]
[1745615315415,14.26,152.46,152.42,8.97075886]
[1745615316130,14.26,152.46,152.43,2.40999326]
[1745615317425,26.0,152.47,152.44,2.40999326]
[1745615317611,14.26,152.5,152.44,91.39187814]
[1745615318810,14.26,152.5,152.45,2.40999326]
[1745615319625,14.26,152.5,152.46,8.96909072]
[1745615319925,14.26,152.5,152.46,91.3910907]
[1745615320293,14.26,152.5,152.47,2.40999326]
[1745615321229,14.26,152.5,152.46,82.42199998]
[1745615323028,14.26,152.5,152.47,2.40314523]
[1745615324020,14.26,152.5,152.46,82.42199998]
[1745615326711,20.81760629,152.5,152.46,82.42199998]
[1745615326909,20.81760629,152.5,152.41,88.98314247]
[1745615327217,20.81760629,152.5,152.42,2.40029286]
[1745615327429,26.0,152.47,152.42,2.40029286]
[1745615327617,26.0,152.46,152.42,84.82229284]
[1745615328433,26.0,152.46,152.43,2.40029286]
[1745615329236,26.0,152.46,152.44,2.40029286]
[1745615330717,26.0,152.46,152.43,2.40029286]
[1745615332012,26.0,152.46,152.44,2.40029286]
[1745615332827,26.0,152.46,152.43,2.40029286]
[1745615336031,26.0,152.45,152.43,2.40029286]
[1745615336938,26.0,152.45,152.42,82.42199998]
[1745615338720,26.0,152.45,152.43,2.40117789]
[1745615338922,27.6107,152.45,152.43,2.40117789]
[1745615339422,27.6107,152.45,152.38,6.56254101]
[1745615339623,27.6107,152.45,152.38,88.98454099]
[1745615340541,27.6107,152.45,152.39,2.40119266]
[1745615340846,27.6107,152.45,152.39,8.9630969]
[1745615341531,27.6107,152.45,152.4,2.40119266]
[1745615343146,27.6107,152.45,152.41,2.40119266]
[1745615344145,27.6107,152.45,152.4,2.40119266]
[1745615345336,27.6107,152.45,152.41,2.40119266]
[1745615346148,27.6107,152.45,152.4,2.40119266]
[1745615347030,27.6107,152.45,152.39,6.56209978]
[1745615347525,41.7107,152.45,152.39,6.56209978]
[1745615349559,41.7107,152.45,152.4,2.40109273]
[1745615349560,18.64964886,152.44,152.4,2.40109273]
[1745615350351,18.64964886,152.44,152.38,82.42199998]
[1745615351280,18.64964886,152.44,152.39,2.4011405]
[1745615351955,25.2097114,152.44,152.39,2.4011405]
[1745615352542,25.2097114,152.44,152.36,6.56329595]
[1745615353352,25.2097114,152.44,152.37,2.39702447]
[1745615354834,25.2097114,152.44,152.36,6.56329595]
[1745615356760,26.0,152.41,152.35,82.42199998]
[1745615358564,18.64964886,152.4,152.35,82.42199998]
[1745615358741,13.86,152.39,152.35,82.42199998]
[1745615359560,13.86,152.39,152.33,82.48499998]
[1745615359863,20.42213248,152.39,152.33,82.48499998]
[1745615360038,13.86,152.39,152.33,82.48499998]
[1745615360464,13.86,152.39,152.33,89.04959018]
[1745615362064,13.86,152.39,152.33,105.46132785]
[1745615362450,13.86,152.39,152.34,2.3928262]
[1745615362659,13.86,152.43,152.34,2.3928262]
[1745615363046,26.0,152.42,152.34,84.81482618]
[1745615363259,26.0,152.42,152.36,6.56340246]
[1745615365568,26.0,152.42,152.35,6.56383327]
[1745615366458,26.0,152.42,152.35,22.97341646]
[1745615366660,26.0,152.42,152.36,2.39244237]
[1745615367766,26.0,152.42,152.37,2.39244237]
[1745615368073,26.0,152.42,152.37,84.81444235]
[1745615368974,26.0,152.42,152.38,8.95461377]
[1745615370258,26.0,152.42,152.38,6.5621714]
[1745615374181,26.0,152.42,152.39,8.95943453]
[1745615374957,26.0,152.42,152.39,6.56198072]
[1745615375289,26.0,152.42,152.38,6.56254101]
[1745615375461,13.86,152.43,152.38,6.56254101]
[1745615377086,13.86,152.43,152.39,2.39877039]
[1745615377687,13.86,152.43,152.39,8.96074069]
[1745615377902,26.0,152.44,152.39,8.96074069]
[1745615378055,13.86,152.47,152.4,2.39877039]
[1745615378261,39.86,152.47,152.4,84.82077037]
[1745615378775,26.0,152.47,152.4,84.82077037]
[1745615379167,26.0,152.47,152.41,2.39877039]
[1745615379675,26.0,152.47,152.42,6.56081879]
[1745615380063,18.64964886,152.46,152.41,2.39877039]
[1745615380691,18.64964886,152.46,152.4,88.98358485]
[1745615380871,18.64964886,152.46,152.4,82.42199998]
[1745615381782,25.20879205,152.46,152.4,82.42199998]
[1745615381973,13.86,152.45,152.4,82.42199998]
[1745615382177,13.86,152.45,152.41,2.3980516]
[1745615382989,13.86,152.45,152.4,82.42199998]
[1745615383505,13.86,152.45,152.38,6.56253715]
[1745615383890,13.86,152.45,152.39,2.399301]
[1745615384089,1.5381,152.44,152.39,2.399301]
[1745615385005,1.5381,152.44,152.4,2.399301]
[1745615385978,1.5381,152.44,152.37,88.98480155]
[1745615387193,1.5381,152.44,152.38,2.40012273]
[1745615388205,1.5381,152.44,152.39,2.40012273]
[1745615389199,1.5381,152.44,152.4,2.40012273]
[1745615390098,1.5381,152.44,152.38,6.56246685]
[1745615390977,13.9,152.43,152.38,6.56246685]
[1745615391307,13.9,152.43,152.39,2.40096946]
[1745615392292,13.9,152.43,152.4,2.40096946]
[1745615393402,13.9,152.43,152.38,6.56246685]
[1745615394079,13.9,152.43,152.37,88.98481458]
[1745615394278,13.9,152.43,152.38,2.40119403]
[1745615395087,13.9,152.43,152.39,2.40119403]
[1745615395805,13.9,152.43,152.4,2.40119403]
[1745615396906,13.9,152.43,152.36,6.56340246]
[1745615397603,13.9,152.43,152.36,22.97190862]
[1745615398104,13.9,152.43,152.37,2.39804008]
[1745615398983,13.9,152.43,152.38,2.39804008]
[1745615399607,13.9,152.43,152.38,8.96044058]
[1745615399985,13.9,152.43,152.39,2.39804008]
[1745615401010,13.9,152.43,152.4,2.39804008]
[1745615401806,13.9,152.43,152.38,6.5624005]
[1745615402712,13.9,152.43,152.39,2.39857137]
[1745615403684,13.9,152.43,152.4,2.39857137]
[1745615404603,13.9,152.43,152.41,2.39857137]
[1745615405297,13.9,152.43,152.4,6.56157436]
[1745615407207,13.9,152.43,152.36,98.83050614]
[1745615407208,13.9,152.43,152.37,22.97040099]
[1745615407584,13.9,152.43,152.38,2.40037382]
[1745615408513,13.9,152.43,152.4,6.56167979]
[1745615409591,13.9,152.43,152.41,2.40037382]
[1745615409995,13.9,152.43,152.41,8.96162275]
[1745615410298,1.5381,152.44,152.41,8.96162275]
[1745615410502,1.5381,152.44,152.42,2.40037382]
[1745615411115,1.5381,152.44,152.4,6.56158017]
[1745615411712,1.5381,152.44,152.41,2.403026]
[1745615412488,1.5381,152.44,152.4,6.56158017]
[1745615412489,1.5381,152.44,152.42,2.403026]
[1745615413617,1.5381,152.44,152.4,6.56158017]
[1745615415213,1.5381,152.44,152.41,2.40392341]
[1745615416289,1.5381,152.44,152.42,2.40392341]
[1745615417119,1.5381,152.44,152.43,2.40392341]
[1745615423021,1.5381,152.44,152.39,6.56205239]
[1745615423630,1.5381,152.44,152.38,6.56254101]
[1745615423811,1.5381,152.44,152.38,88.98454099]
[1745615424425,1.5381,152.44,152.39,2.40556328]
[1745615425201,1.5381,152.44,152.39,8.96762156]
[1745615425493,1.5381,152.44,152.4,2.40556328]
[1745615426354,1.5381,152.44,152.41,2.40556328]
[1745615427525,1.5381,152.44,152.42,2.40556328]
[1745615428525,1.5381,152.44,152.43,2.40556328]
[1745615428727,26.0,152.44,152.43,2.40556328]
[1745615429917,13.9,152.46,152.43,8.96593153]
[1745615430516,13.9,152.46,152.44,2.40556328]
[1745615431427,13.9,152.46,152.45,2.40556328]
[1745615432425,26.0,152.48,152.45,2.40556328]
[1745615432832,26.0,152.48,152.45,8.96489763]
[1745615433226,25.5,152.48,152.45,8.96489763]
[1745615433533,25.5,152.48,152.45,2.40556328]
[1745615433908,18.64964886,152.5,152.46,2.40556328]
[1745615434910,18.64964886,152.5,152.42,6.56081879]
[1745615435329,26.0,152.47,152.42,6.56081879]
[1745615435836,26.0,152.47,152.43,2.40102976]
[1745615436355,26.0,152.47,152.43,84.82302974]
[1745615436633,26.0,152.47,152.44,2.40102976]
[1745615437431,26.0,152.47,152.45,2.40102976]
[1745615438150,18.64964886,152.5,152.44,6.55995681]
[1745615438319,26.0,152.49,152.44,6.55995681]
[1745615438519,26.0,152.49,152.43,88.98219987]
[1745615438821,26.0,152.49,152.44,2.4004584]
[1745615440042,26.0,152.49,152.45,2.4004584]
[1745615440920,26.0,152.49,152.43,88.98219987]
[1745615441840,26.0,152.49,152.44,2.39978266]
[1745615442640,26.0,152.49,152.45,2.39978266]
[1745615443946,26.0,152.49,152.43,88.98219987]
[1745615444644,26.0,152.49,152.44,2.40011519]
[1745615445762,26.0,152.49,152.45,2.40011519]
[1745615446449,26.0,152.48,152.44,6.55987541]
[1745615447954,26.0,152.48,152.44,88.98187539]
[1745615448451,26.0,152.48,152.45,8.95907093]
[1745615449635,13.69,152.51,152.45,91.38107091]
[1745615449952,13.69,152.51,152.46,2.39960344]
[1745615450660,13.69,152.51,152.47,2.39960344]
[1745615451455,13.69,152.51,152.45,88.98146747]
[1745615451631,20.24704791,152.51,152.45,82.42199998]
[1745615452261,20.24704791,152.51,152.46,2.39844047]
[1745615453457,20.24704791,152.51,152.45,82.42199998]
[1745615455658,20.24704791,152.51,152.46,2.39972502]
[1745615456461,20.24704791,152.51,152.45,82.42199998]
[1745615458162,20.24704791,152.51,152.46,2.3998491]
[1745615458863,20.24704791,152.51,152.45,82.42199998]
[1745615459641,13.69,152.51,152.45,82.42199998]
[1745615460660,13.69,152.51,152.46,2.39963622]
[1745615461542,13.69,152.51,152.47,2.39963622]
[1745615462146,0.03,152.51,152.47,84.8216362]